bitfinex/quotes_BTCUSD_20210402
["timestamp","ask_amount","ask_price","bid_price","bid_amount"]
[1617326861419,0.71477599,58777.0,58776.0,2.81137869]
[1617326861617,0.54476399,58777.0,58776.0,3.25137869]
[1617326861818,0.54476399,58777.0,58776.0,2.06666706]
[1617326862022,0.54476399,58777.0,58776.0,2.29766706]
[1617326862424,0.54476399,58777.0,58776.0,2.54766706]
[1617326862619,0.49472396,58777.0,58776.0,3.91666706]
[1617326862823,0.49472396,58777.0,58776.0,2.51766706]
[1617326863835,0.49472396,58777.0,58776.0,2.52166706]
[1617326865284,0.49472396,58777.0,58776.0,1.98666706]
[1617326865684,0.49472396,58777.0,58776.0,1.84529869]
[1617326866290,0.49472396,58777.0,58776.0,1.87529869]
[1617326866491,0.49472396,58777.0,58776.0,2.53529869]
[1617326866693,0.49472396,58777.0,58776.0,2.25666706]
[1617326867492,0.49472396,58777.0,58776.0,2.22666706]
[1617326868093,0.49472396,58777.0,58776.0,2.08529869]
[1617326868494,0.49472396,58777.0,58776.0,2.34034269]
[1617326869091,0.49472396,58777.0,58776.0,2.51171106]
[1617326870695,0.49472396,58777.0,58776.0,2.27171106]
[1617326870895,0.49472396,58777.0,58776.0,2.13034269]
[1617326871917,0.49472396,58777.0,58776.0,2.25171106]
[1617326872116,0.49472396,58777.0,58776.0,2.79171106]
[1617326873734,0.49472396,58777.0,58776.0,2.65034269]
[1617326874334,0.49472396,58777.0,58776.0,2.64535269]
[1617326876363,0.49472396,58777.0,58776.0,2.63635269]
[1617326876765,0.49472396,58777.0,58776.0,2.60635269]
[1617326877765,0.49472396,58777.0,58776.0,2.63635269]
[1617326878462,0.49472396,58777.0,58776.0,3.03635269]
[1617326878663,0.49472396,58777.0,58776.0,2.63635269]
[1617326880947,0.49472396,58777.0,58776.0,2.60635269]
[1617326882151,0.49472396,58777.0,58776.0,2.63635269]
[1617326882346,0.48972396,58777.0,58776.0,2.63635269]
[1617326882948,0.48972396,58777.0,58776.0,2.60635269]
[1617326884951,0.48972396,58777.0,58776.0,2.63635269]
[1617326885151,0.43968393,58777.0,58776.0,3.52635269]
[1617326885550,0.43968393,58777.0,58776.0,3.73659316]
[1617326885751,0.43968393,58777.0,58776.0,2.84659316]
[1617326886149,0.43968393,58777.0,58776.0,2.79523536]
[1617326886768,0.43968393,58777.0,58776.0,2.63635269]
[1617326886966,0.43968393,58777.0,58776.0,2.60635269]
[1617326887368,0.43968393,58777.0,58776.0,3.42526183]
[1617326887567,0.43968393,58777.0,58776.0,3.63599822]
[1617326888368,0.43968393,58777.0,58776.0,3.50708908]
[1617326888767,0.43968393,58777.0,58776.0,2.84708908]
[1617326888968,0.43968393,58777.0,58776.0,2.60635269]
[1617326890584,0.43968393,58777.0,58776.0,2.76531143]
[1617326890782,0.43968393,58777.0,58776.0,2.07134269]
[1617326890983,0.43968393,58777.0,58776.0,1.93742269]
[1617326891183,0.43968393,58777.0,58776.0,2.09637098]
[1617326892410,0.43968393,58777.0,58776.0,2.24603411]
[1617326892611,0.43968393,58777.0,58776.0,2.48603411]
[1617326892810,0.43968393,58777.0,58776.0,2.32708582]
[1617326893411,0.43968393,58777.0,58776.0,2.48601747]
[1617326893613,0.43968393,58777.0,58776.0,1.88738584]
[1617326893816,0.43968393,58777.0,58776.0,1.21238584]
[1617326893817,0.47968393,58777.0,58776.0,1.21238584]
[1617326894014,0.47968393,58777.0,58776.0,0.41809171]
[1617326894015,2.89068393,58777.0,58776.0,0.41809171]
[1617326894214,2.89068393,58777.0,58776.0,0.30030002]
[1617326894643,2.89068393,58777.0,58775.0,0.16424012]
[1617326894892,2.84068393,58777.0,58775.0,0.16424012]
[1617326895071,0.84068393,58777.0,58775.0,0.16424012]
[1617326895269,1.7783768,58776.0,58775.0,0.16424012]
[1617326895471,1.7783768,58776.0,58775.0,0.00527749]
[1617326896470,0.47968393,58777.0,58775.0,0.00527749]
[1617326897289,0.47968393,58777.0,58775.0,0.16425205]
[1617326897494,0.43968393,58777.0,58776.0,0.809191]
[1617326897692,0.43968393,58777.0,58776.0,1.114296]
[1617326897891,0.34171412,58777.0,58776.0,2.309296]
[1617326898090,0.34171412,58777.0,58776.0,2.376296]
[1617326898292,0.34171412,58777.0,58776.0,2.73400085]
[1617326898689,0.34171412,58777.0,58776.0,3.73400085]
[1617326898888,0.34171412,58777.0,58776.0,4.08462324]
[1617326899089,0.141554,58777.0,58776.0,4.11462324]
[1617326899288,0.14111962,58777.0,58776.0,4.11462324]
[1617326899689,0.14111962,58777.0,58776.0,4.18263735]
[1617326900690,0.14111962,58777.0,58776.0,4.43263735]
[1617326901290,0.14111962,58777.0,58776.0,3.45263735]
[1617326901690,0.12610762,58777.0,58776.0,3.45263735]
[1617326902089,0.0910796,58777.0,58776.0,3.45263735]
[1617326902514,0.0910796,58777.0,58776.0,3.42263735]
[1617326903516,0.0910796,58777.0,58776.0,3.32126898]
[1617326903720,0.0910796,58777.0,58776.0,3.35126898]
[1617326905740,0.0910796,58777.0,58776.0,2.90126898]
[1617326906142,0.0910796,58777.0,58776.0,2.69201496]
[1617326906543,0.0910796,58777.0,58776.0,2.15201496]
[1617326907964,0.0910796,58777.0,58776.0,2.31055707]
[1617326908364,0.0910796,58777.0,58776.0,2.15201496]
[1617326909768,0.0910796,58777.0,58776.0,1.81084783]
[1617326910018,0.0910796,58777.0,58776.0,2.31084783]
[1617326910220,0.0910796,58777.0,58776.0,2.15201496]
[1617326910819,0.0910796,58777.0,58776.0,2.31081382]
[1617326911022,0.0910796,58777.0,58776.0,3.54201496]
[1617326911420,0.0910796,58777.0,58776.0,3.75125379]
[1617326911620,0.0910796,58777.0,58776.0,3.10201496]
[1617326911821,0.0910796,58777.0,58776.0,3.07201496]
[1617326912020,0.0910796,58777.0,58776.0,3.86201496]
[1617326912218,0.0910796,58777.0,58776.0,3.07201496]
[1617326913023,0.0910796,58777.0,58776.0,3.00501496]
[1617326913622,0.0910796,58777.0,58776.0,3.14638333]
[1617326914020,0.0910796,58777.0,58776.0,3.68638333]
[1617326914223,0.0910796,58777.0,58776.0,3.35569516]
[1617326914622,0.0910796,58777.0,58776.0,3.17638333]
[1617326915021,0.0910796,58777.0,58776.0,4.04638333]
[1617326915224,0.0910796,58777.0,58776.0,4.2556145]
[1617326915421,0.0910796,58777.0,58776.0,3.0056145]
[1617326915847,0.0910796,58777.0,58776.0,2.29638333]
[1617326916047,0.0910796,58777.0,58776.0,3.26638333]
[1617326917848,0.0910796,58777.0,58776.0,3.76638333]
[1617326918051,0.0910796,58777.0,58776.0,3.97552072]
[1617326921789,0.0910796,58777.0,58776.0,3.00552072]
[1617326921990,0.0910796,58777.0,58776.0,2.76638333]
[1617326926366,0.0910796,58777.0,58776.0,2.22638333]
[1617326926564,0.0910796,58777.0,58776.0,2.08501496]
[1617326927563,0.0910796,58777.0,58776.0,2.76638333]
[1617326928769,0.0910796,58777.0,58776.0,4.40638333]
[1617326928968,0.0910796,58777.0,58776.0,4.1869261]
[1617326929770,0.0910796,58777.0,58776.0,4.4069261]
[1617326930168,0.0910796,58777.0,58776.0,4.1869261]
[1617326930371,0.0910796,58777.0,58776.0,3.0069261]
[1617326930973,0.0910796,58777.0,58776.0,2.79638333]
[1617326932997,0.0910796,58777.0,58776.0,2.76638333]
[1617326933199,0.0910796,58777.0,58776.0,2.08501496]
[1617326933803,0.4158096,58777.0,58776.0,2.08501496]
[1617326934014,0.4158096,58777.0,58776.0,1.87001496]
[1617326934215,0.4158096,58777.0,58776.0,1.80200085]
[1617326934414,0.4158096,58777.0,58776.0,2.10200085]
[1617326934614,0.4158096,58777.0,58776.0,2.34200085]
[1617326936416,0.4158096,58777.0,58776.0,2.48336922]
[1617326937649,0.4158096,58777.0,58776.0,1.99336922]
[1617326938650,0.4158096,58777.0,58776.0,2.90336922]
[1617326938651,0.0910796,58777.0,58776.0,2.90336922]
[1617326938852,0.0910796,58777.0,58776.0,2.48336922]
[1617326939052,0.0910796,58777.0,58776.0,2.34200085]
[1617326940122,0.0910796,58777.0,58776.0,2.51336922]
[1617326940521,0.0910796,58777.0,58776.0,2.89419413]
[1617326940737,0.07331776,58777.0,58776.0,3.19419413]
[1617326941122,0.07331776,58777.0,58776.0,3.14336922]
[1617326941524,0.07331776,58777.0,58776.0,3.67336922]
[1617326941724,0.07331776,58777.0,58776.0,2.58527301]
[1617326941926,0.07331776,58777.0,58776.0,2.37336922]
[1617326942124,0.07331776,58777.0,58776.0,2.23200085]
[1617326942723,0.07331776,58777.0,58776.0,3.71200085]
[1617326942926,0.07331776,58777.0,58776.0,3.92409565]
[1617326943126,0.07331776,58777.0,58776.0,4.20827225]
[1617326943325,0.07331776,58777.0,58776.0,4.34964062]
[1617326943526,0.07331776,58777.0,58776.0,4.1504715]
[1617326944326,0.07331776,58777.0,58776.0,3.6504715]
[1617326945327,0.07331776,58777.0,58776.0,4.1504715]
[1617326945728,0.07331776,58777.0,58776.0,2.6704715]
[1617326946128,0.07331776,58777.0,58776.0,2.4583767]
[1617326946730,0.07331776,58777.0,58776.0,3.6983767]
[1617326947149,0.07331776,58777.0,58776.0,3.91040665]
[1617326947350,0.06831776,58777.0,58776.0,3.91040665]
[1617326947748,0.06831776,58777.0,58776.0,3.41040665]
[1617326948150,0.06831776,58777.0,58776.0,3.1983767]
[1617326948349,0.06831776,58777.0,58776.0,3.6983767]
[1617326948552,0.05831776,58777.0,58776.0,3.91035591]
[1617326948751,0.05831776,58777.0,58776.0,3.17035591]
[1617326948951,0.05831776,58777.0,58776.0,2.9583767]
[1617326954802,0.05791206,58777.0,58776.0,3.3583767]
[1617326955120,0.05791206,58777.0,58776.0,3.17038404]
[1617326955318,0.05791206,58777.0,58776.0,2.9583767]
[1617326958553,0.05791206,58777.0,58776.0,3.3383767]
[1617326958753,0.05791206,58777.0,58776.0,3.55081821]
[1617326959354,0.05791206,58777.0,58776.0,3.17081821]
[1617326959555,0.05791206,58777.0,58776.0,3.76081821]
[1617326959756,0.05791206,58777.0,58776.0,3.97297133]
[1617326960555,0.04791206,58777.0,58776.0,3.97297133]
[1617326961156,0.04791206,58777.0,58776.0,3.38297133]
[1617326961559,0.03290006,58777.0,58776.0,3.63052982]
[1617326961758,0.03290006,58777.0,58776.0,3.84241959]
[1617326963784,0.03290006,58777.0,58776.0,3.38241959]
[1617326964384,0.03290006,58777.0,58776.0,3.68052982]
[1617326964786,0.03290006,58777.0,58776.0,3.89271209]
[1617326968003,0.03290006,58777.0,58776.0,3.38271209]
[1617326968230,0.03290006,58777.0,58776.0,3.17052982]
[1617326968830,0.03290006,58777.0,58776.0,2.4183767]
[1617326969831,0.03290006,58777.0,58776.0,2.3883767]
[1617326970131,0.03290006,58777.0,58776.0,2.59317134]
[1617326970958,0.03290006,58777.0,58776.0,2.62317134]
[1617326972364,0.03040806,58777.0,58776.0,2.62317134]
[1617326973363,0.03040806,58777.0,58776.0,3.03317134]
[1617326973576,0.03040806,58777.0,58776.0,2.62317134]
[1617326974379,0.03040806,58777.0,58776.0,3.26317134]
[1617326974781,0.00374831,58777.0,58776.0,3.26317134]
[1617326975185,0.00033631,58787.0,58780.0,0.389191]
[1617326975383,0.00033631,58787.0,58786.0,0.429191]
[1617326975583,0.00033631,58787.0,58786.0,0.49543123]
[1617326976225,0.00033631,58787.0,58786.0,0.6367996]
[1617326976426,0.00033631,58787.0,58786.0,1.1367996]
[1617326976627,0.00033631,58787.0,58786.0,1.3918186]
[1617326976827,0.00033631,58787.0,58786.0,2.3368186]
[1617326977027,0.00033631,58787.0,58786.0,2.69860143]
[1617326977427,0.00033631,58787.0,58786.0,2.94860143]
[1617326978227,0.55033631,58787.0,58786.0,2.50360143]
[1617326978830,0.55033631,58787.0,58786.0,2.66314105]
[1617326979231,0.75033631,58787.0,58786.0,2.50360143]
[1617326979733,0.75033631,58787.0,58786.0,2.01360143]
[1617326979734,1.07175533,58787.0,58786.0,2.01360143]
[1617326979931,1.27675533,58787.0,58786.0,2.01360143]
[1617326980333,1.84675533,58787.0,58786.0,0.38676257]
[1617326980533,1.56533631,58787.0,58786.0,0.38676257]
[1617326980735,1.56533631,58787.0,58786.0,0.26497974]
[1617326980935,1.08742331,58787.0,58786.0,0.26497974]
[1617326981354,1.44533631,58787.0,58786.0,0.26497974]
[1617326981553,0.79533631,58787.0,58786.0,0.26497974]
[1617326981755,0.64033631,58787.0,58786.0,0.26497974]
[1617326981957,0.59033631,58787.0,58786.0,0.26497974]
[1617326982355,1.43033631,58787.0,58786.0,0.26497974]
[1617326982559,0.59033631,58787.0,58786.0,0.26497974]
[1617326982756,0.84033631,58787.0,58786.0,0.26497974]
[1617326982957,0.59033631,58787.0,58786.0,0.26497974]
[1617326983157,1.46033631,58787.0,58786.0,0.26497974]
[1617326983758,1.55242331,58787.0,58786.0,0.26497974]
[1617326985457,1.55242331,58787.0,58786.0,0.36497974]
[1617326985858,1.35242331,58787.0,58786.0,0.36497974]
[1617326986069,1.26033631,58787.0,58786.0,0.36497974]
[1617326987059,1.22033631,58787.0,58786.0,0.36497974]
[1617326987259,0.55033631,58787.0,58786.0,0.36497974]
[1617326987664,0.00033631,58787.0,58786.0,0.36497974]
[1617326988258,0.53033631,58787.0,58786.0,0.52497974]
[1617326988460,0.53033631,58787.0,58786.0,0.36497974]
[1617326989862,0.52533631,58787.0,58786.0,0.86497974]
[1617326990262,0.0008,58788.0,58786.0,0.86497974]
[1617326990462,0.0008,58788.0,58787.0,0.04]
[1617326991063,0.4508,58788.0,58787.0,0.04]
[1617326991262,0.73316184,58788.0,58787.0,0.04]
[1617326992464,0.4508,58788.0,58787.0,0.04]
[1617326994479,0.73316184,58788.0,58787.0,0.04]
[1617326994679,0.4508,58788.0,58787.0,0.04]
[1617326995279,0.0008,58788.0,58787.0,0.04]
[1617326995684,0.0008,58788.0,58787.0,0.54]
[1617326995884,0.0008,58788.0,58787.0,0.929191]
[1617326998718,0.0008,58788.0,58787.0,1.429191]
[1617326998921,0.0008,58788.0,58787.0,1.669191]
[1617326999117,0.0008,58788.0,58787.0,2.1449642]
[1617326999737,0.0008,58788.0,58787.0,1.7899642]
[1617327000201,0.4708,58788.0,58787.0,1.7899642]
[1617327000402,0.75316184,58788.0,58787.0,1.7899642]
[1617327000602,0.4708,58788.0,58787.0,1.7899642]
[1617327000805,0.99316184,58788.0,58787.0,1.1607732]
[1617327001206,1.08524884,58788.0,58787.0,1.1607732]
[1617327001407,0.602887,58788.0,58787.0,1.0]
[1617327001605,0.4708,58788.0,58787.0,1.0]
[1617327001806,0.0008,58788.0,58787.0,1.389191]
[1617327002005,0.0008,58788.0,58787.0,1.429191]
[1617327002206,0.0008,58788.0,58787.0,0.929191]
[1617327003803,0.0008,58788.0,58787.0,1.244191]
[1617327004205,0.0008,58788.0,58787.0,1.86525906]
[1617327004406,0.0008,58788.0,58787.0,1.99334906]
[1617327004608,0.0008,58788.0,58787.0,2.23334906]
[1617327005206,0.0008,58788.0,58787.0,2.44788146]
[1617327007411,0.0008,58788.0,58787.0,2.47788146]
[1617327008410,0.0008,58788.0,58787.0,2.54788146]
[1617327008609,0.0008,58788.0,58787.0,3.53804271]
[1617327008817,5.0012,58790.0,58789.0,2.429191]
[1617327009012,5.0012,58790.0,58789.0,4.07251327]
[1617327009211,5.0012,58790.0,58789.0,5.50960613]
[1617327009409,5.0012,58790.0,58789.0,5.96960613]
[1617327009410,4.80360804,58790.0,58789.0,5.96960613]
[1617327009614,4.75885353,58790.0,58789.0,7.71340406]
[1617327009816,4.75885353,58790.0,58789.0,7.33149541]
[1617327010012,4.48078551,58790.0,58789.0,7.71340406]
[1617327010236,4.48078551,58790.0,58789.0,7.83149541]
[1617327010437,4.19605042,58790.0,58789.0,8.21340406]
[1617327011037,3.87571102,58790.0,58789.0,8.21340406]
[1617327011639,3.03187826,58790.0,58789.0,8.21340406]
[1617327012041,2.69198226,58790.0,58789.0,8.21340406]
[1617327012239,2.40103659,58790.0,58789.0,8.21340406]
[1617327012446,1.71828059,58790.0,58789.0,8.77340406]
[1617327012638,1.71708059,58790.0,58789.0,8.77340406]
[1617327012871,0.12345,58790.0,58789.0,8.86340406]
[1617327013068,0.0006,58793.0,58791.0,0.65]
[1617327013269,0.001,58799.0,58793.0,2.719191]
[1617327013470,0.65795675,58800.0,58797.0,0.389191]
[1617327013669,0.65795675,58800.0,58799.0,4.63796965]
[1617327013869,0.35223056,58800.0,58799.0,7.56577473]
[1617327014065,0.35223056,58800.0,58799.0,8.77767983]
[1617327014469,0.05601665,58800.0,58799.0,4.42367072]
[1617327014868,0.05601665,58800.0,58799.0,4.57967072]
[1617327015069,0.05601665,58800.0,58799.0,4.83967072]
[1617327015342,0.05601665,58800.0,58799.0,4.71239602]
[1617327015539,0.05601665,58800.0,58799.0,4.52196719]
[1617327015741,0.05601665,58800.0,58799.0,4.56164076]
[1617327015941,0.05601665,58800.0,58799.0,4.36196719]
[1617327016141,0.05601665,58800.0,58799.0,4.56165135]
[1617327016541,0.00597662,58800.0,58799.0,4.52196719]
[1617327016741,0.00597662,58800.0,58799.0,4.49196719]
[1617327016941,0.00097662,58800.0,58799.0,4.49196719]
[1617327017742,0.00097662,58800.0,58799.0,4.79196719]
[1617327018541,0.00097662,58800.0,58799.0,5.06196719]
[1617327018744,0.001,58806.0,58800.0,2.52]
[1617327018745,0.00057662,58804.0,58800.0,2.52]
[1617327018944,0.00057662,58804.0,58803.0,0.919191]
[1617327019142,0.00057662,58804.0,58803.0,0.889191]
[1617327019343,0.00057662,58804.0,58803.0,1.38962248]
[1617327019543,0.00057662,58804.0,58803.0,1.74464857]
[1617327019744,0.00057662,58804.0,58803.0,2.12462248]
[1617327019944,0.00057662,58804.0,58803.0,1.99464857]
[1617327020143,0.00057662,58804.0,58803.0,2.37462248]
[1617327020347,0.00057662,58804.0,58803.0,1.99464857]
[1617327020745,0.00057662,58804.0,58803.0,2.14894912]
[1617327020948,0.00057662,58804.0,58803.0,2.52892303]
[1617327021349,0.00057662,58804.0,58803.0,2.14894912]
[1617327021552,0.00057662,58804.0,58803.0,2.52892303]
[1617327021749,0.00057662,58804.0,58803.0,2.14894912]
[1617327021952,0.00057662,58804.0,58803.0,2.55892303]
[1617327022751,0.00057662,58804.0,58803.0,2.49143915]
[1617327023365,0.82839721,58804.0,58803.0,2.46143915]
[1617327023565,0.82839721,58804.0,58803.0,2.07849155]
[1617327023768,0.82839721,58804.0,58803.0,1.924191]
[1617327024567,0.82839721,58804.0,58803.0,1.92518288]
[1617327024769,0.82839721,58804.0,58803.0,1.92617402]
[1617327024967,0.82839721,58804.0,58803.0,2.30614793]
[1617327025167,0.82839721,58804.0,58803.0,1.92617402]
[1617327025371,0.82839721,58804.0,58803.0,2.33416491]
[1617327025571,0.82839721,58804.0,58803.0,1.954191]
[1617327025770,0.82839721,58804.0,58803.0,2.95416491]
[1617327025995,0.82839721,58804.0,58803.0,2.41095491]
[1617327026193,0.82839721,58804.0,58803.0,2.81699491]
[1617327026595,0.82839721,58804.0,58803.0,2.48699491]
[1617327026799,0.82839721,58804.0,58803.0,2.49618992]
[1617327026997,0.82839721,58804.0,58803.0,2.11621601]
[1617327027196,0.82839721,58804.0,58803.0,2.03942601]
[1617327027398,0.82839721,58804.0,58803.0,1.63338601]
[1617327027999,0.82839721,58804.0,58803.0,1.70309765]
[1617327028200,0.82839721,58804.0,58803.0,1.97309765]
[1617327028399,0.82839721,58804.0,58803.0,1.93338601]
[1617327028820,0.82839721,58804.0,58803.0,1.43338601]
[1617327029021,0.95241888,58804.0,58803.0,1.43338601]
[1617327029223,1.13234325,58804.0,58803.0,0.69838601]
[1617327029422,1.13234325,58804.0,58803.0,0.30919501]
[1617327029623,1.13234325,58804.0,58803.0,0.05919501]
[1617327029824,1.17234325,58804.0,58803.0,0.55919501]
[1617327030026,2.00528025,58804.0,58803.0,0.50000501]
[1617327030314,2.00528025,58804.0,58803.0,5.01e-06]
[1617327030506,2.79438025,58804.0,58803.0,0.00100001]
[1617327030706,2.75438025,58804.0,58803.0,5.01e-06]
[1617327030905,2.59038025,58804.0,58803.0,5.01e-06]
[1617327031559,2.59038025,58804.0,58803.0,0.00199446]
[1617327031560,2.29829325,58804.0,58803.0,0.00199446]
[1617327031760,1.57749721,58804.0,58803.0,0.00199446]
[1617327031959,1.57749721,58804.0,58803.0,0.08475446]
[1617327032159,1.57749721,58804.0,58803.0,1.47034326]
[1617327032160,0.82839721,58804.0,58803.0,1.47034326]
[1617327032360,0.82839721,58804.0,58803.0,1.85655101]
[1617327032961,0.82839721,58804.0,58803.0,2.25640616]
[1617327033158,0.82839721,58804.0,58803.0,2.26652492]
[1617327035377,0.82839721,58804.0,58803.0,1.88655101]
[1617327035776,0.82839721,58804.0,58803.0,2.26652492]
[1617327035982,0.82839721,58804.0,58803.0,1.09652492]
[1617327036177,0.82839721,58804.0,58803.0,0.71655101]
[1617327036381,0.82839721,58804.0,58803.0,1.13379101]
[1617327036594,0.82839721,58804.0,58803.0,1.10379101]
[1617327036793,0.82839721,58804.0,58803.0,1.26343884]
[1617327036994,0.82839721,58804.0,58803.0,1.10379101]
[1617327037392,0.82839721,58804.0,58803.0,0.60379101]
[1617327037795,0.62839721,58804.0,58803.0,1.85379101]
[1617327038197,0.62839721,58804.0,58803.0,2.22242076]
[1617327038792,0.62839721,58804.0,58803.0,2.60239467]
[1617327038993,0.62839721,58804.0,58803.0,2.63239467]
[1617327039256,0.62839721,58804.0,58803.0,2.25242076]
[1617327039456,0.62839721,58804.0,58803.0,2.13242076]
[1617327040056,0.62839721,58804.0,58803.0,0.76242076]
[1617327040257,0.62839721,58804.0,58803.0,0.63379101]
[1617327041459,0.58840721,58804.0,58803.0,1.36379101]
[1617327041658,0.58840721,58804.0,58803.0,1.49135066]
[1617327041857,0.58840721,58804.0,58803.0,1.36379101]
[1617327042460,0.58781877,58804.0,58803.0,2.78379101]
[1617327042659,0.58781877,58804.0,58803.0,3.86379101]
[1617327042860,0.58781877,58804.0,58803.0,3.99137208]
[1617327043060,0.58781877,58804.0,58803.0,3.08405099]
[1617327043461,0.58781877,58804.0,58803.0,3.81134599]
[1617327043662,0.58781877,58804.0,58803.0,4.08134599]
[1617327043863,0.58781877,58804.0,58803.0,3.08137208]
[1617327044061,0.58781877,58804.0,58803.0,2.86134599]
[1617327044473,0.58781877,58804.0,58803.0,3.69134599]
[1617327044673,0.58781877,58804.0,58803.0,3.44134599]
[1617327045073,0.58781877,58804.0,58803.0,3.06137208]
[1617327045546,0.58781877,58804.0,58803.0,3.56137208]
[1617327046149,0.58781877,58804.0,58803.0,3.23627608]
[1617327046549,0.58781877,58804.0,58803.0,3.50627608]
[1617327046747,0.58781877,58804.0,58803.0,3.23627608]
[1617327046946,0.58781877,58804.0,58803.0,3.45923159]
[1617327047147,0.58781877,58804.0,58803.0,3.23627608]
[1617327047546,0.58781877,58804.0,58803.0,3.28627608]
[1617327048148,0.58781877,58804.0,58803.0,3.50926107]
[1617327048351,0.58781877,58804.0,58803.0,3.88923498]
[1617327048548,0.58781877,58804.0,58803.0,3.90085725]
[1617327048747,0.57280677,58804.0,58803.0,3.90085725]
[1617327049346,0.57280677,58804.0,58803.0,4.15085725]
[1617327049548,0.57280677,58804.0,58803.0,3.90085725]
[1617327049948,0.56780677,58804.0,58803.0,3.90085725]
[1617327051155,0.56780677,58804.0,58803.0,3.52088334]
[1617327052352,0.56780677,58804.0,58803.0,4.30088334]
[1617327052551,0.56780677,58804.0,58803.0,5.98085725]
[1617327052755,0.56780677,58804.0,58803.0,3.90085725]
[1617327052953,0.56780677,58804.0,58803.0,4.01099853]
[1617327053356,0.56780677,58804.0,58803.0,3.90085725]
[1617327053553,0.56780677,58804.0,58803.0,4.06085725]
[1617327053952,0.56780677,58804.0,58803.0,3.68088334]
[1617327054153,0.56780677,58804.0,58803.0,4.06085725]
[1617327054357,0.56780677,58804.0,58803.0,5.66085725]
[1617327054554,0.56780677,58804.0,58803.0,5.04085725]
[1617327054969,0.56780677,58804.0,58803.0,4.06085725]
[1617327055171,0.56780677,58804.0,58803.0,3.68088334]
[1617327055572,0.56780677,58804.0,58803.0,4.06085725]
[1617327056373,0.56780677,58804.0,58803.0,5.35085725]
[1617327056574,0.56780677,58804.0,58803.0,5.54257248]
[1617327056774,0.56780677,58804.0,58803.0,5.16257248]
[1617327057375,0.56780677,58804.0,58803.0,5.45257248]
[1617327058000,0.56780677,58804.0,58803.0,5.16257248]
[1617327058198,0.56780677,58804.0,58803.0,5.30991453]
[1617327059399,0.55279477,58804.0,58803.0,6.39991453]
[1617327060227,0.55279477,58804.0,58803.0,5.30991453]
[1617327060483,0.55279477,58804.0,58803.0,5.81991453]
[1617327061083,0.55279477,58804.0,58803.0,6.81007578]
[1617327061291,0.55279477,58804.0,58803.0,7.79007578]
[1617327061487,0.55279477,58804.0,58803.0,8.07147395]
[1617327062687,0.35280885,58804.0,58803.0,8.07147395]
[1617327064085,0.01300985,58804.0,58803.0,8.11147395]
[1617327064289,0.0014,58805.0,58804.0,1.18]
[1617327064487,0.0014,58805.0,58804.0,4.93935225]
[1617327064687,0.0014,58805.0,58804.0,5.97716293]
[1617327064890,0.0014,58805.0,58804.0,5.98116293]
[1617327065087,0.0004,58808.0,58805.0,0.79]
[1617327065289,0.0012,58829.0,58807.0,0.24266574]
[1617327065489,0.0012,58829.0,58811.0,4.189191]
[1617327065689,0.0012,58829.0,58811.0,4.1872575]
[1617327065888,0.0012,58829.0,58811.0,4.79092565]
[1617327066088,0.0012,58829.0,58811.0,6.7810869]
[1617327066891,0.0012,58829.0,58811.0,5.79092565]
[1617327067891,0.2012,58829.0,58811.0,5.79092565]
[1617327068697,0.0012,58829.0,58811.0,5.79092565]
[1617327068901,0.0412,58829.0,58811.0,5.79092565]
[1617327069098,0.0012,58829.0,58811.0,5.79092565]
[1617327069297,0.0012,58829.0,58812.0,3.329191]
[1617327069298,0.0011,58813.0,58812.0,3.329191]
[1617327069498,0.0011,58813.0,58812.0,5.43486195]
[1617327069700,0.0011,58813.0,58812.0,5.8469131]
[1617327069898,0.0011,58813.0,58812.0,6.75671838]
[1617327070099,0.0011,58813.0,58812.0,7.74687963]
[1617327070297,0.0011,58813.0,58812.0,6.99671838]
[1617327070499,0.0012,58829.0,58812.0,6.99671838]
[1617327070500,0.036688,58822.0,58813.0,1.63]
[1617327070728,0.036688,58822.0,58821.0,2.09234445]
[1617327070928,0.036688,58822.0,58821.0,2.96714736]
[1617327071128,0.036688,58822.0,58821.0,3.40727937]
[1617327071327,0.036688,58822.0,58821.0,1.93727937]
[1617327071527,0.036688,58822.0,58821.0,2.59727937]
[1617327071729,0.036688,58822.0,58821.0,3.59727937]
[1617327071926,0.036688,58822.0,58821.0,3.62626937]
[1617327073555,0.036688,58822.0,58821.0,3.56727937]
[1617327073955,0.036688,58822.0,58821.0,3.57889992]
[1617327074959,0.036688,58822.0,58821.0,3.70662992]
[1617327075441,0.036688,58822.0,58821.0,3.90485205]
[1617327077882,0.036688,58822.0,58821.0,3.91206115]
[1617327079125,0.036688,58822.0,58821.0,3.90206115]
[1617327081332,0.97854797,58832.0,58827.0,0.254809]
[1617327081529,0.97854797,58832.0,58831.0,2.42701586]
[1617327081733,0.97854797,58832.0,58831.0,2.158975]
[1617327082131,0.97854797,58832.0,58831.0,2.81466891]
[1617327082328,0.97854797,58832.0,58831.0,3.53966891]
[1617327082528,0.97854797,58832.0,58831.0,2.08966891]
[1617327083334,0.97854797,58832.0,58831.0,2.35169769]
[1617327084350,0.97354797,58832.0,58831.0,2.35169769]
[1617327085150,0.97354797,58832.0,58831.0,2.60169769]
[1617327085350,0.97354797,58832.0,58831.0,2.76776512]
[1617327086983,0.97354797,58832.0,58831.0,3.18776512]
[1617327087185,0.0066,58833.0,58832.0,2.048975]
[1617327087385,0.0066,58833.0,58832.0,3.69992808]
[1617327087582,0.0066,58833.0,58832.0,2.10992808]
[1617327087783,0.0016,58833.0,58832.0,2.32446048]
[1617327087983,0.0016,58833.0,58832.0,3.74250134]
[1617327088184,0.0016,58833.0,58832.0,3.40250134]
[1617327088383,0.0016,58833.0,58832.0,3.06446048]
[1617327088588,0.0016,58833.0,58832.0,3.40972358]
[1617327091091,0.0016,58833.0,58832.0,3.4213431]
[1617327091754,0.0016,58833.0,58832.0,3.41412086]
[1617327091944,0.0016,58833.0,58832.0,3.4113431]
[1617327092949,0.0016,58833.0,58832.0,3.07608]
[1617327093551,0.0016,58833.0,58832.0,3.4821]
[1617327093950,0.0016,58833.0,58832.0,3.4857103]
[1617327094559,0.7215617,58833.0,58832.0,3.4857103]
[1617327094960,0.7215617,58833.0,58832.0,5.0209734]
[1617327095161,0.7215617,58833.0,58832.0,5.6909734]
[1617327095562,0.7065497,58833.0,58832.0,8.35113465]
[1617327095762,0.47672714,58833.0,58832.0,8.35113465]
[1617327096157,0.47172714,58833.0,58832.0,8.35113465]
[1617327096560,0.22578862,58833.0,58832.0,9.69419388]
[1617327096982,0.22578862,58833.0,58832.0,8.44419388]
[1617327097183,0.22578862,58833.0,58832.0,10.62002108]
[1617327097586,0.0015992,58841.0,58832.0,10.78302108]
[1617327097790,0.0412,58857.0,58843.0,0.0025]
[1617327097988,0.0032,58848.0,58846.0,0.18910027]
[1617327098385,0.0032,58848.0,58846.0,0.25697409]
[1617327098786,0.0032,58848.0,58846.0,0.75697409]
[1617327098989,0.0032,58848.0,58846.0,0.75626537]
[1617327099185,0.1962,58847.0,58846.0,0.82287382]
[1617327099807,0.0032,58848.0,58846.0,1.32287382]